bitfinex/quotes_BTCUSD_20250825
["timestamp","ask_amount","ask_price","bid_price","bid_amount"]
[1756147971801,0.00044798,112670.0,112660.0,2.09009885]
[1756147972008,0.00044798,112670.0,112660.0,2.02649677]
[1756147972204,0.00044798,112670.0,112660.0,2.09029255]
[1756147972375,0.00044798,112670.0,112660.0,2.02649677]
[1756147973037,0.00044798,112670.0,112660.0,2.02549677]
[1756147973232,0.00044798,112670.0,112660.0,2.08927437]
[1756147973437,0.00044798,112670.0,112660.0,2.09227437]
[1756147974308,0.00044798,112670.0,112660.0,2.49227437]
[1756147974732,0.00044798,112670.0,112660.0,2.49427437]
[1756147975253,0.00044798,112670.0,112660.0,2.49227437]
[1756147975484,0.00044798,112670.0,112660.0,2.49627437]
[1756147976387,0.00044798,112670.0,112660.0,2.59627437]
[1756147977778,0.01,112680.0,112670.0,1.65009776]
[1756147977994,0.01,112680.0,112670.0,1.73908251]
[1756147978206,0.01,112680.0,112670.0,1.89408251]
[1756147978623,0.01,112680.0,112670.0,1.92076551]
[1756147978926,0.01,112680.0,112670.0,1.92276551]
[1756147979134,0.01,112680.0,112670.0,1.92576551]
[1756147979592,0.17744758,112710.0,112700.0,0.17746228]
[1756147979799,0.17792738,112710.0,112700.0,0.32942228]
[1756147980211,0.19181854,112710.0,112700.0,0.32942228]
[1756147980551,0.19181854,112710.0,112690.0,0.17747803]
[1756147980753,0.19181854,112710.0,112700.0,0.32942228]
[1756147980945,0.20069086,112710.0,112700.0,0.32942228]
[1756147982007,0.21842183,112710.0,112700.0,0.32942228]
[1756147982185,0.21842183,112710.0,112690.0,0.26436278]
[1756147982385,1.08275803,112710.0,112700.0,0.15196]
[1756147982591,0.17746228,112700.0,112690.0,0.26436278]
[1756147982794,1.04179848,112700.0,112690.0,0.15196]
[1756147983201,0.17746228,112700.0,112690.0,0.32943803]
[1756147984010,0.17746228,112700.0,112690.0,0.15196]
[1756147985206,0.17746228,112700.0,112690.0,0.15296]
[1756147987123,1.05569035,112700.0,112690.0,0.15296]
[1756147987980,0.19135415,112700.0,112690.0,0.15296]
[1756147989146,0.19135415,112700.0,112690.0,0.001]
[1756147989434,0.19135415,112700.0,112690.0,0.15296]
[1756147990210,1.05569035,112700.0,112690.0,0.15296]
[1756147990875,1.05569035,112700.0,112690.0,0.001]
[1756147991029,1.07232372,112700.0,112690.0,0.15296]
[1756147991854,1.09901172,112700.0,112690.0,0.15296]
[1756147992057,0.23467552,112700.0,112690.0,0.15296]
[1756147992431,1.1073313,112700.0,112690.0,0.15296]
[1756147992816,1.1093313,112700.0,112690.0,0.15296]
[1756147993028,1.1073313,112700.0,112690.0,0.15296]
[1756147993472,1.1093313,112700.0,112690.0,0.15296]
[1756147993672,0.2449951,112700.0,112690.0,0.15196]
[1756147993877,1.1093313,112700.0,112690.0,0.15196]
[1756147995633,0.17747803,112690.0,112670.0,0.45767703]
[1756147995831,1.04181423,112690.0,112680.0,0.15192]
[1756147996878,0.17747803,112690.0,112680.0,0.15192]
[1756147997943,0.17747803,112690.0,112680.0,0.33245378]
[1756147998149,0.17747803,112690.0,112680.0,0.15806]
[1756147998567,0.17747803,112690.0,112680.0,0.15596]
[1756147999231,1.04181423,112690.0,112680.0,0.15292]
[1756147999633,1.06850323,112690.0,112680.0,0.15292]
[1756148001017,0.20416703,112690.0,112680.0,0.15596]
[1756148001336,0.22081082,112690.0,112680.0,0.15806]
[1756148001556,0.20416703,112690.0,112680.0,0.33555378]
[1756148001773,0.2208099,112690.0,112680.0,0.15292]
[1756148002465,1.0851461,112690.0,112680.0,0.001]
[1756148003151,1.51201575,112690.0,112680.0,0.001]
[1756148003375,1.43346861,112690.0,112680.0,0.001]
[1756148003597,1.4251461,112690.0,112680.0,0.001]
[1756148004249,0.17749378,112680.0,112670.0,0.42017202]
[1756148004425,1.05847285,112680.0,112670.0,0.42017202]
[1756148004609,1.05847285,112680.0,112670.0,0.42321202]
[1756148005015,1.05847285,112680.0,112670.0,0.42531202]
[1756148005837,1.05846803,112680.0,112670.0,0.42531202]
[1756148006259,1.05846803,112680.0,112670.0,0.42631202]
[1756148007094,1.05846803,112680.0,112670.0,0.15806]
[1756148007503,1.07236193,112680.0,112670.0,0.15806]
[1756148008123,1.07236193,112680.0,112670.0,0.001]
[1756148008356,1.07236193,112680.0,112670.0,0.15292]
[1756148008683,1.22428193,112680.0,112670.0,0.15292]
[1756148008982,1.25097294,112680.0,112670.0,0.15292]
[1756148009163,1.09905294,112680.0,112670.0,0.001]
[1756148009364,1.10105294,112680.0,112670.0,0.15292]
[1756148009565,1.10105294,112680.0,112670.0,0.15192]
[1756148010786,0.17750954,112670.0,112660.0,0.15495]
[1756148010989,1.04184574,112670.0,112660.0,0.15495]
[1756148011601,0.17754105,112650.0,112640.0,0.59451628]
[1756148011816,0.17753962,112660.0,112640.0,0.56670103]
[1756148012008,0.17754105,112650.0,112640.0,0.56670103]
[1756148012190,0.17753962,112660.0,112640.0,0.56674901]
[1756148012366,0.19143542,112660.0,112650.0,0.17754105]
[1756148012570,0.19143542,112660.0,112650.0,0.17962105]
[1756148012769,0.19143542,112660.0,112650.0,0.18265105]
[1756148013564,0.17753962,112660.0,112650.0,0.18365105]
[1756148013966,0.17753962,112660.0,112650.0,0.18265105]
[1756148014637,0.17753962,112660.0,112650.0,0.00511]
[1756148014840,1.04187582,112660.0,112650.0,0.15591]
[1756148015155,1.07353074,112660.0,112650.0,0.15591]
[1756148015756,0.89420298,112660.0,112650.0,0.15799]
[1756148015966,1.07172827,112660.0,112650.0,0.33553105]
[1756148016168,0.20918021,112660.0,112650.0,0.33553105]
[1756148016986,0.22307588,112660.0,112650.0,0.33553105]
[1756148017734,0.04555059,112660.0,112650.0,0.33553105]
[1756148018736,0.22307588,112660.0,112650.0,0.33553105]
[1756148022673,0.19142096,112660.0,112650.0,0.33553105]
[1756148023768,0.01389567,112660.0,112650.0,0.33553105]
[1756148025290,0.01389567,112660.0,112650.0,0.18365105]
[1756148025495,0.01389567,112660.0,112650.0,0.33553105]
[1756148026052,0.01389567,112660.0,112650.0,1.286752]
[1756148026250,0.52636846,112680.0,112670.0,0.17750954]
[1756148026625,0.56969267,112680.0,112670.0,0.15699]
[1756148026802,0.17750954,112670.0,112660.0,0.44924782]
[1756148027017,0.19414175,112670.0,112660.0,0.60321529]
[1756148028039,0.22605021,112670.0,112660.0,0.60321529]
[1756148028458,0.22605725,112670.0,112660.0,0.60321529]
[1756148028671,0.22805725,112670.0,112660.0,0.45133529]
[1756148028876,0.22805725,112670.0,112660.0,0.60321529]
[1756148029071,0.22805784,112670.0,112660.0,0.60321529]
[1756148029555,0.2419528,112670.0,112660.0,0.60321529]
[1756148030173,0.2419528,112670.0,112660.0,0.45133529]
[1756148030380,0.2419528,112670.0,112660.0,0.60317529]
[1756148031437,0.2419528,112670.0,112660.0,0.45133529]
[1756148031666,0.2419528,112670.0,112660.0,0.60317529]
[1756148031892,0.0325348,112670.0,112660.0,0.60317529]
[1756148032376,0.01589496,112670.0,112660.0,0.60317529]
[1756148032609,0.01589496,112670.0,112660.0,1.55439624]
[1756148034569,0.01389496,112670.0,112660.0,1.55439624]
[1756148034792,0.01589496,112670.0,112660.0,1.59439935]
[1756148034998,0.01389496,112670.0,112660.0,0.73006315]
[1756148035201,0.01389496,112670.0,112660.0,1.61384837]
[1756148035579,0.01389496,112670.0,112660.0,1.70531497]
[1756148035764,0.58525802,112700.0,112680.0,0.17748071]
[1756148036004,0.60135259,112700.0,112690.0,0.33444803]
[1756148036635,0.41556775,112700.0,112690.0,0.33444803]
[1756148036841,0.04887975,112700.0,112690.0,0.33444803]
[1756148037060,0.20969691,112700.0,112690.0,0.18264803]
[1756148037278,0.20969691,112700.0,112690.0,0.33444803]
[1756148037475,0.03223463,112700.0,112690.0,0.33444803]
[1756148037909,0.002,112700.0,112690.0,0.33444803]
[1756148038123,0.21304828,112710.0,112700.0,0.17746228]
[1756148038124,0.05865997,112710.0,112700.0,0.17746228]
[1756148038341,0.03245477,112710.0,112700.0,0.17754228]
[1756148038572,0.03245477,112710.0,112700.0,0.18063228]
[1756148038982,0.04634542,112710.0,112700.0,0.18063228]
[1756148039190,0.22379196,112710.0,112700.0,0.18063228]
[1756148039401,0.22379196,112710.0,112700.0,0.33235228]
[1756148039603,0.22579196,112710.0,112700.0,0.33443228]
[1756148040254,0.22579196,112710.0,112700.0,0.1518]
[1756148040463,1.09012816,112710.0,112700.0,0.32926228]
[1756148040671,1.09012816,112710.0,112700.0,0.33235228]
[1756148041596,1.09012816,112710.0,112700.0,0.33231228]
[1756148041935,0.22579196,112710.0,112700.0,0.33231228]
[1756148042586,0.22579196,112710.0,112700.0,0.33439228]
[1756148043364,0.22579196,112710.0,112700.0,0.18263228]
[1756148043592,0.22579196,112710.0,112700.0,0.33439228]
[1756148044134,0.22579196,112710.0,112700.0,0.15693]
[1756148044346,0.22579196,112710.0,112700.0,0.33439228]
[1756148044778,0.21190131,112710.0,112700.0,0.33439228]
[1756148045429,0.21190131,112710.0,112700.0,0.15693]
[1756148045851,0.21190131,112710.0,112700.0,0.00517]
[1756148046066,0.21190131,112710.0,112700.0,0.15693]
[1756148047941,0.21190131,112710.0,112700.0,0.15689]
[1756148048157,0.22579189,112710.0,112700.0,0.15689]
[1756148048370,0.22579189,112710.0,112700.0,0.00517]
[1756148048604,1.09012809,112710.0,112700.0,0.15481]
[1756148049030,0.17746228,112700.0,112690.0,0.35867475]
[1756148049255,1.04179848,112700.0,112690.0,0.60306803]
[1756148049481,0.17746228,112700.0,112690.0,0.60306803]
[1756148049704,0.17746228,112700.0,112690.0,0.42559]
[1756148049944,0.17746228,112700.0,112690.0,0.60306803]
[1756148050156,0.17746228,112700.0,112690.0,0.60406803]
[1756148055511,1.04179848,112700.0,112690.0,0.27279]
[1756148055735,1.04179848,112700.0,112690.0,0.42443]
[1756148055948,1.04179848,112700.0,112690.0,0.42651]
[1756148056161,1.04179848,112700.0,112690.0,0.42134]
[1756148056575,1.40848548,112700.0,112690.0,0.2697]
[1756148056792,1.42509046,112700.0,112690.0,0.42134]
[1756148057618,1.42509046,112700.0,112690.0,0.42034]
[1756148057819,1.57673046,112700.0,112690.0,0.42034]
[1756148059697,1.42509046,112700.0,112690.0,0.42034]
[1756148059903,1.42509046,112700.0,112690.0,0.42343]
[1756148059904,1.18389615,112700.0,112690.0,0.42343]
[1756148060090,1.3752507,112700.0,112690.0,0.42343]
[1756148060537,1.3752507,112700.0,112690.0,0.15473]
[1756148060959,1.3752507,112700.0,112690.0,0.15164]
[1756148061165,0.17747803,112690.0,112680.0,0.00309]
[1756148061378,1.04181423,112690.0,112680.0,0.15681]
[1756148061586,1.04181423,112690.0,112680.0,0.33430378]
[1756148061814,1.04181423,112690.0,112680.0,0.15681]
[1756148061994,1.04181423,112690.0,112680.0,0.33430378]
[1756148062379,1.04181423,112690.0,112680.0,0.15781]
[1756148062582,1.04181423,112690.0,112680.0,0.33530378]
[1756148062790,1.05844997,112690.0,112680.0,0.15781]
[1756148063329,1.05844997,112690.0,112680.0,0.001]
[1756148063555,1.05844997,112690.0,112680.0,0.15569]
[1756148064057,1.05844997,112690.0,112680.0,0.15777]
[1756148064283,1.08513897,112690.0,112680.0,0.15777]
[1756148065001,1.08513897,112690.0,112680.0,0.15569]
[1756148065485,1.09903198,112690.0,112680.0,0.15569]
[1756148065701,1.09903198,112690.0,112680.0,0.001]
[1756148065908,1.09903198,112690.0,112680.0,0.1526]
[1756148066263,1.09903198,112690.0,112680.0,0.15556]
[1756148066481,1.10735597,112690.0,112680.0,0.15556]
[1756148066701,1.09903593,112690.0,112680.0,0.15556]
[1756148066929,1.09903593,112690.0,112680.0,0.15456]
[1756148069149,1.43903593,112690.0,112680.0,0.1516]
[1756148069349,1.44735239,112690.0,112680.0,0.1516]
[1756148069745,1.44735271,112690.0,112680.0,0.1516]
[1756148073371,1.43903593,112690.0,112680.0,0.15456]
[1756148073800,1.43903593,112690.0,112680.0,0.15661]
[1756148074416,1.43903593,112690.0,112680.0,0.15456]
[1756148074625,1.43903593,112690.0,112680.0,0.1516]
[1756148076062,1.43902603,112690.0,112680.0,0.1516]
[1756148076496,0.17749378,112680.0,112670.0,0.07124]
[1756148076707,1.04182998,112680.0,112670.0,0.22485]
[1756148077149,1.04182998,112680.0,112670.0,0.07329]
[1756148077395,1.04182998,112680.0,112670.0,0.00296]
[1756148077604,0.17750954,112670.0,112660.0,0.34276163]
[1756148077820,1.04184574,112670.0,112660.0,0.49637163]
[1756148078335,1.04184574,112670.0,112660.0,0.07611163]
[1756148078532,1.04184574,112670.0,112660.0,0.22763163]
[1756148078962,5.91609774,112670.0,112660.0,0.22763163]
[1756148079396,5.94279174,112670.0,112660.0,0.22763163]
[1756148079608,5.94279174,112670.0,112660.0,0.22963163]
[1756148080025,5.94279174,112670.0,112660.0,0.23163163]
[1756148080531,1.06853974,112670.0,112660.0,0.23163163]
[1756148081138,1.08243482,112670.0,112660.0,0.23163163]
[1756148082541,0.21809862,112670.0,112660.0,0.40915692]
[1756148085887,0.04058908,112670.0,112660.0,0.40915692]
[1756148086033,0.01389508,112670.0,112660.0,0.40915692]
[1756148086235,0.01389508,112670.0,112660.0,0.49604167]
[1756148086897,0.01389508,112670.0,112660.0,0.34452167]
[1756148087115,0.19140462,112670.0,112660.0,0.42490004]
[1756148088379,0.19140462,112670.0,112660.0,0.27342004]
[1756148088583,0.19140462,112670.0,112660.0,0.42490004]
[1756148089989,0.19140462,112670.0,112660.0,0.69360004]
[1756148090870,0.01389508,112670.0,112660.0,0.69360004]
[1756148091914,0.19140462,112670.0,112660.0,0.54212004]
[1756148092091,0.19140462,112670.0,112660.0,0.69360004]
[1756148092682,0.01389508,112670.0,112660.0,0.69360004]
[1756148092903,1.06852298,112680.0,112660.0,0.69360004]
[1756148093102,1.42517069,112680.0,112670.0,0.00296]
[1756148093307,1.42517069,112680.0,112670.0,0.00501]
[1756148094693,0.17750954,112670.0,112660.0,0.53511004]
[1756148094898,0.17750954,112670.0,112660.0,0.68660004]
[1756148095305,0.17750954,112670.0,112660.0,0.68970004]
[1756148096192,0.19140422,112670.0,112660.0,0.68970004]
[1756148096388,0.19140422,112670.0,112660.0,0.69370004]
[1756148098930,0.01389468,112670.0,112660.0,0.69370004]
[1756148099585,0.01389468,112670.0,112660.0,1.55803624]
[1756148099993,0.01389468,112670.0,112660.0,1.40659624]
[1756148100189,0.19140422,112670.0,112660.0,0.56895004]
[1756148100405,1.05574042,112670.0,112660.0,0.54282475]
[1756148100660,1.05574042,112670.0,112660.0,0.72035004]
[1756148101110,0.01389468,112670.0,112660.0,0.69366004]
[1756148101955,0.19140422,112670.0,112660.0,0.54226004]
[1756148102354,0.19140422,112670.0,112660.0,0.69366004]
[1756148104851,0.01389468,112670.0,112660.0,0.69366004]
[1756148107371,0.01389468,112670.0,112660.0,1.55799624]
[1756148107594,0.01389468,112670.0,112660.0,1.40659624]
[1756148107811,0.01389468,112670.0,112660.0,0.69362004]
[1756148108942,0.01389468,112670.0,112660.0,1.57540526]
[1756148109156,0.18633539,112700.0,112680.0,0.17748]
[1756148109366,0.17747803,112690.0,112680.0,0.0031]
[1756148109607,0.17747803,112690.0,112680.0,0.15446]
[1756148109831,0.17747803,112690.0,112680.0,0.33195378]
[1756148110044,1.04181423,112690.0,112680.0,0.33195378]
[1756148110471,1.04181423,112690.0,112680.0,0.33400378]
[1756148110472,0.17747803,112690.0,112680.0,0.33400378]
[1756148113085,0.17747803,112690.0,112680.0,0.18264378]
[1756148113439,0.17747803,112690.0,112680.0,0.15647]
[1756148113653,1.05570704,112690.0,112680.0,0.33396378]
[1756148113857,0.19137084,112690.0,112680.0,0.33396378]
[1756148116227,0.01389281,112690.0,112680.0,0.33396378]
[1756148118429,0.01389281,112690.0,112680.0,0.48912853]
[1756148118618,0.01389281,112690.0,112680.0,1.62216473]
[1756148118832,0.01389281,112690.0,112680.0,1.64884973]
[1756148119259,0.01389281,112690.0,112680.0,0.63319353]
[1756148119463,0.01389281,112690.0,112680.0,0.51577353]
[1756148119688,0.01389281,112690.0,112680.0,0.36449353]
[1756148119922,0.01389281,112690.0,112680.0,0.51577353]
[1756148120126,0.19137084,112690.0,112680.0,0.51577353]
[1756148120338,0.19137084,112690.0,112680.0,0.51777353]
[1756148120339,0.01389281,112690.0,112680.0,0.51777353]
[1756148120751,0.01389281,112690.0,112680.0,0.51977353]
[1756148120996,0.19137084,112690.0,112680.0,0.51977353]
[1756148121198,0.01389281,112690.0,112680.0,0.51977353]
[1756148122272,0.17746607,112700.0,112680.0,0.51977353]
[1756148122626,0.17746607,112700.0,112690.0,0.18057803]
[1756148124319,0.17746607,112700.0,112690.0,0.18157803]
[1756148124937,0.17746607,112700.0,112690.0,0.001]
[1756148125171,1.04180227,112700.0,112690.0,0.15224]
[1756148125399,1.04180227,112700.0,112690.0,0.001]
[1756148125618,1.05569478,112700.0,112690.0,0.001]
[1756148126687,0.17747803,112690.0,112680.0,0.21948]
[1756148126899,0.17747803,112690.0,112680.0,0.1512]
[1756148127109,0.17747803,112690.0,112680.0,0.15413]
[1756148127872,0.17747803,112690.0,112680.0,0.33373378]
[1756148128236,0.17747803,112690.0,112680.0,0.15624]
[1756148128456,0.17749378,112680.0,112670.0,0.34273163]
[1756148128674,0.17749378,112680.0,112670.0,0.67355117]
[1756148129295,0.19138698,112680.0,112670.0,0.67355117]
[1756148129481,0.19138698,112680.0,112670.0,0.49604163]
[1756148129891,0.19138698,112680.0,112670.0,0.49804163]
[1756148130288,0.19138698,112680.0,112670.0,0.50004163]
[1756148130723,0.19138698,112680.0,112670.0,0.49604163]
[1756148131429,0.19138698,112680.0,112670.0,0.41986]
[1756148131430,1.05572318,112680.0,112670.0,0.41986]
[1756148131606,1.04182998,112680.0,112670.0,0.41986]
[1756148131815,0.17749378,112680.0,112670.0,0.41986]
[1756148132068,1.04182998,112680.0,112670.0,0.42086]
[1756148133165,1.03532065,112680.0,112670.0,0.42086]
[1756148133375,0.17098445,112680.0,112670.0,0.42086]
[1756148133838,1.03532065,112680.0,112670.0,0.42086]
[1756148134513,1.03532065,112680.0,112670.0,0.15216]
[1756148135681,1.06201165,112680.0,112670.0,0.15216]
[1756148136958,1.07590568,112680.0,112670.0,0.15216]
[1756148137381,1.41590568,112680.0,112670.0,0.001]
[1756148137608,1.41590568,112680.0,112670.0,0.15212]
[1756148137824,2.28024188,112680.0,112670.0,0.001]
[1756148138066,7.17944789,112680.0,112670.0,0.001]
[1756148138738,7.17944789,112680.0,112650.0,0.15112]
[1756148138739,7.18832257,112680.0,112650.0,0.15112]
[1756148138983,0.17754105,112650.0,112640.0,0.13938163]
[1756148139165,1.04187725,112650.0,112640.0,0.22226961]
[1756148139570,1.06857725,112650.0,112640.0,0.22226961]
[1756148139777,1.11260106,112650.0,112640.0,0.22226961]
[1756148140803,1.11260106,112650.0,112640.0,0.15116798]
[1756148141202,1.09870355,112650.0,112640.0,0.15116798]
[1756148144171,1.58982355,112650.0,112640.0,4.798e-05]
[1756148144814,6.51247474,112650.0,112640.0,4.798e-05]
[1756148145026,6.47797428,112650.0,112640.0,4.798e-05]
[1756148145247,6.49454908,112650.0,112640.0,4.798e-05]
[1756148145664,6.34342908,112650.0,112640.0,4.798e-05]
[1756148145885,6.49454908,112650.0,112640.0,4.798e-05]
[1756148146236,6.49554908,112650.0,112640.0,4.798e-05]
[1756148146452,6.49553922,112650.0,112640.0,4.798e-05]
[1756148146672,6.34441922,112650.0,112640.0,4.798e-05]
[1756148146865,6.49553922,112650.0,112640.0,4.798e-05]
[1756148148884,6.34441922,112650.0,112640.0,4.798e-05]
[1756148149096,6.16687817,112650.0,112640.0,0.00297798]
[1756148149306,6.34441922,112650.0,112640.0,0.00508798]
[1756148149526,5.63116302,112650.0,112640.0,0.07618961]
[1756148149772,0.74034608,112650.0,112640.0,0.07618961]
[1756148150003,1.60468228,112650.0,112640.0,0.07618961]
[1756148150496,1.45360228,112650.0,112640.0,0.07618961]
[1756148151318,1.47014915,112650.0,112640.0,0.07618961]
[1756148152741,0.24926608,112650.0,112640.0,0.25374642]
[1756148152989,0.23536735,112650.0,112640.0,0.25374642]
[1756148153173,0.57536735,112650.0,112640.0,0.40482642]
[1756148153392,0.23536735,112650.0,112640.0,0.40482642]
[1756148153599,0.57536735,112650.0,112640.0,0.40482642]
[1756148153812,0.57536735,112650.0,112640.0,0.22726961]
[1756148154234,0.57436735,112650.0,112640.0,0.07618961]
[1756148154445,1.43870355,112650.0,112640.0,0.15616798]
[1756148156370,1.46916576,112650.0,112640.0,0.00508798]
[1756148160311,0.60482956,112650.0,112640.0,0.18264479]
[1756148160776,0.05716221,112650.0,112640.0,0.18264479]
[1756148161008,0.03046221,112650.0,112640.0,0.45134479]
[1756148161238,0.01389827,112650.0,112640.0,0.45134479]
[1756148162575,0.01389827,112650.0,112640.0,0.45434479]
[1756148163604,0.01389827,112650.0,112640.0,1.40556574]
[1756148163934,0.01389827,112650.0,112640.0,1.13886574]
[1756148164155,0.54420602,112670.0,112660.0,0.17752529]
[1756148164394,0.56911698,112670.0,112660.0,0.33357529]
[1756148164620,1.43345318,112670.0,112660.0,0.00505]
[1756148164855,0.17753548,112660.0,112650.0,0.33155105]
[1756148165085,1.05847899,112660.0,112650.0,0.15605]
[1756148165530,1.05847899,112660.0,112650.0,0.33359105]
[1756148165770,1.05847899,112660.0,112650.0,0.18259105]
[1756148165983,1.05847899,112660.0,112650.0,0.33359105]
[1756148166200,1.05847899,112660.0,112650.0,0.33459105]
[1756148167133,0.19414279,112660.0,112650.0,0.18359105]
[1756148167364,1.0723753,112660.0,112650.0,0.00605]
[1756148167622,1.0723753,112660.0,112650.0,0.15501]
[1756148167885,1.0723753,112660.0,112650.0,0.15601]
[1756148168164,1.07238822,112660.0,112650.0,0.15601]
[1756148168387,1.10285221,112660.0,112650.0,0.15601]
[1756148168530,1.11116208,112660.0,112650.0,0.15601]
[1756148168766,1.11116208,112660.0,112650.0,0.153]
[1756148169196,1.11116208,112660.0,112650.0,0.002]
[1756148169389,1.26212208,112660.0,112650.0,0.002]
[1756148170227,1.26212208,112660.0,112650.0,0.001]
[1756148171072,1.23719198,112660.0,112650.0,0.001]
[1756148171290,0.17754105,112650.0,112640.0,0.60027305]
[1756148171498,0.1941586,112650.0,112640.0,0.60231305]
[1756148172142,0.19415823,112650.0,112640.0,0.60231305]
[1756148172977,0.19415823,112650.0,112640.0,0.27379798]
[1756148173179,0.19415823,112650.0,112640.0,0.42575798]
[1756148173556,0.19415823,112650.0,112640.0,0.42675798]
[1756148174109,0.19415823,112650.0,112640.0,0.60431479]
[1756148176219,0.01661718,112650.0,112640.0,0.60431479]
[1756148177900,0.03051453,112650.0,112640.0,0.60431479]
[1756148180659,0.20805558,112650.0,112640.0,0.60431479]
[1756148180876,0.20806791,112650.0,112640.0,0.60431479]
[1756148181302,0.20806791,112650.0,112640.0,0.60427479]
[1756148181704,0.03052686,112650.0,112640.0,0.60427479]
[1756148182342,0.01662951,112650.0,112640.0,0.60427479]
[1756148182997,0.19417056,112650.0,112640.0,0.60219479]
[1756148183214,0.19417056,112650.0,112640.0,0.60423479]
[1756148183835,0.19417056,112650.0,112640.0,0.42667798]
[1756148184464,0.19417056,112650.0,112640.0,0.60423479]
[1756148186447,0.19417056,112650.0,112640.0,0.59918479]
[1756148186670,0.19417056,112650.0,112640.0,0.60439479]
[1756148186892,0.20806802,112650.0,112640.0,0.60439479]
[1756148188267,0.19143851,112650.0,112640.0,0.60439479]
[1756148188959,0.19143851,112650.0,112640.0,0.33569479]
[1756148189181,0.19143851,112650.0,112640.0,0.15288798]
[1756148189415,1.07242303,112650.0,112640.0,0.15288798]
[1756148189821,1.09912203,112650.0,112640.0,0.15288798]
[1756148190595,1.09912099,112650.0,112640.0,0.15088798]
[1756148191526,1.09912099,112650.0,112640.0,0.15411798]
[1756148191738,1.09912122,112650.0,112640.0,0.15411798]
[1756148192879,1.09912122,112650.0,112640.0,0.15609798]
[1756148193917,0.23478502,112650.0,112640.0,0.15411798]
[1756148194107,1.09912122,112650.0,112640.0,0.15411798]
[1756148199922,1.09912122,112650.0,112640.0,0.33365479]
[1756148200115,0.23478502,112650.0,112640.0,0.33365479]
[1756148200318,0.21813751,112650.0,112640.0,0.33365479]
[1756148200532,0.23479984,112650.0,112640.0,0.33365479]
[1756148200781,0.03055979,112650.0,112640.0,0.42053954]
[1756148200994,0.01389746,112650.0,112640.0,0.42053954]
[1756148201211,0.01389746,112650.0,112640.0,1.35597737]
[1756148202271,0.01389746,112650.0,112640.0,1.35697737]
[1756148202927,0.01389746,112650.0,112640.0,1.35797737]
[1756148204143,0.01389746,112650.0,112640.0,1.35997737]
[1756148205242,0.01389746,112650.0,112640.0,1.38606007]
[1756148205457,0.01389746,112650.0,112640.0,1.65476007]
[1756148206086,0.01389746,112650.0,112640.0,1.55745574]
[1756148206298,0.37427395,112670.0,112650.0,0.17752621]
[1756148206501,0.23019846,112670.0,112660.0,0.33345529]
[1756148206706,0.05266447,112670.0,112660.0,0.33345529]
[1756148207140,0.02596947,112670.0,112660.0,0.33345529]
[1756148207644,0.20655213,112680.0,112670.0,0.17750954]
[1756148207868,0.22083153,112680.0,112670.0,0.18271954]
[1756148208086,0.2180819,112680.0,112670.0,0.18271954]
[1756148208508,0.04058812,112680.0,112670.0,0.18271954]
[1756148208951,0.04158812,112680.0,112670.0,0.33343954]
[1756148209512,0.04085669,112680.0,112670.0,0.18271954]
[1756148209708,0.04085669,112680.0,112670.0,0.33339954]
[1756148210539,0.03985669,112680.0,112670.0,0.33339954]
[1756148210745,0.21735047,112680.0,112670.0,0.18271954]
[1756148210955,0.21735047,112680.0,112670.0,0.32818954]
[1756148211157,0.21735047,112680.0,112670.0,0.33141954]
[1756148211379,0.21735047,112680.0,112670.0,0.33339954]
[1756148212678,0.21735047,112680.0,112670.0,0.18271954]
[1756148212881,0.21735047,112680.0,112670.0,0.33339954]
[1756148213522,0.03985669,112680.0,112670.0,0.33339954]
[1756148215454,0.03985669,112680.0,112670.0,0.33335954]
[1756148215664,0.21735047,112680.0,112670.0,0.18271954]
[1756148215940,0.01389512,112680.0,112670.0,0.33335954]
[1756148218245,0.04011382,112680.0,112670.0,0.33335954]
[1756148218650,0.04011382,112680.0,112670.0,0.18271954]
[1756148219230,0.01389512,112680.0,112670.0,0.33331954]
[1756148219740,0.20416803,112690.0,112680.0,0.17749378]
[1756148219943,0.20416803,112690.0,112680.0,0.17958378]
[1756148220178,0.20416803,112690.0,112680.0,0.18270378]
[1756148220461,1.06850423,112690.0,112680.0,0.00521]
[1756148220673,1.06850423,112690.0,112680.0,0.00312]
[1756148220882,1.06850423,112690.0,112680.0,0.15372]
[1756148221100,1.06950423,112690.0,112680.0,0.15372]
[1756148221326,1.06950423,112690.0,112680.0,0.33330378]
[1756148221547,0.001,112690.0,112680.0,0.33330378]
[1756148222690,0.01489344,112690.0,112680.0,0.18270378]
[1756148222933,0.01489344,112690.0,112680.0,0.33330378]
[1756148224229,0.04126958,112690.0,112680.0,0.33330378]
[1756148224446,0.01489344,112690.0,112680.0,0.33330378]
[1756148225010,0.01489344,112690.0,112680.0,1.28452473]
[1756148225228,0.01489344,112690.0,112680.0,1.30197375]
[1756148225658,0.01489344,112690.0,112680.0,1.30193375]
[1756148226085,0.01489344,112690.0,112680.0,0.28703755]
[1756148226296,0.01489344,112690.0,112680.0,0.43759755]
[1756148226744,0.01489344,112690.0,112680.0,0.28703755]
[1756148226959,0.01489344,112690.0,112680.0,0.43759755]
[1756148227574,0.04096683,112690.0,112680.0,0.43859755]
[1756148227836,0.03996683,112690.0,112680.0,0.28803755]
[1756148228026,0.03996683,112690.0,112680.0,0.43855755]
[1756148228289,0.03996683,112690.0,112680.0,0.43955755]
[1756148228507,0.01389344,112690.0,112680.0,0.43955755]
[1756148229363,0.01389344,112690.0,112680.0,1.30389375]
[1756148230657,0.17746269,112700.0,112690.0,0.17747803]
[1756148230882,0.20238751,112700.0,112690.0,0.18268803]
[1756148231516,0.20238751,112700.0,112690.0,0.18059803]
[1756148231696,0.20238751,112700.0,112690.0,0.18268803]
[1756148232115,0.02492482,112700.0,112690.0,0.18268803]
[1756148233464,0.22928979,112700.0,112690.0,0.00521]
[1756148233666,0.22928979,112700.0,112690.0,0.33316803]
[1756148234827,0.05182751,112700.0,112690.0,0.33316803]
[1756148235503,0.22928979,112700.0,112690.0,0.33316803]
[1756148237897,0.05182751,112700.0,112690.0,0.33316803]
[1756148238103,0.21267324,112700.0,112690.0,0.33316803]
[1756148238328,0.22931226,112700.0,112690.0,0.33316803]
[1756148238966,0.22931226,112700.0,112690.0,0.15044]
[1756148239178,0.22931226,112700.0,112690.0,0.32791803]
[1756148239397,0.22931226,112700.0,112690.0,0.15044]
[1756148239610,0.22931226,112700.0,112690.0,0.15356]
[1756148239825,0.22931226,112700.0,112690.0,0.33103803]
[1756148240234,0.22931226,112700.0,112690.0,0.15356]
[1756148241136,0.22931226,112700.0,112690.0,0.33312803]
[1756148241346,0.21268073,112700.0,112690.0,0.33312803]
[1756148241562,0.22931597,112700.0,112690.0,0.33312803]
[1756148242674,0.05185369,112700.0,112690.0,0.33312803]
[1756148243152,0.22931597,112700.0,112690.0,0.33312803]
[1756148247868,0.22933179,112700.0,112690.0,0.33312803]
[1756148248045,0.22934156,112700.0,112690.0,0.33312803]
[1756148248247,0.21092538,112700.0,112690.0,0.33312803]